bitfinex/quotes_ETHUSD_20250324
["timestamp","ask_amount","ask_price","bid_price","bid_amount"]
[1742781549034,5.83473,1985.0,1984.6,5.03875]
[1742781549340,8.03743,1985.2,1984.7,5.03841]
[1742781549675,5.03783,1985.0,1984.6,6.12323]
[1742781549975,5.03812,1984.9,1984.6,1.08446]
[1742781550539,8.90032329,1985.0,1984.6,6.12312]
[1742781550738,8.90032329,1985.0,1984.7,0.612312]
[1742781551376,5.03788,1985.0,1984.7,0.612312]
[1742781552448,3.86253329,1985.0,1984.5,0.7669]
[1742781552653,5.03843,1984.8,1984.5,27.869]
[1742781552849,5.03872,1984.7,1984.5,27.869]
[1742781553177,8.90132329,1984.6,1984.5,27.869]
[1742781553761,11.90132329,1984.6,1984.5,27.869]
[1742781556152,5.03996,1984.2,1983.9,28.6359]
[1742781556352,10.07999,1984.2,1983.9,32.98922037]
[1742781556559,5.04017,1984.1,1983.9,32.22232037]
[1742781557290,5.04158,1983.6,1983.3,0.7669]
[1742781557583,5.04108,1983.7,1983.3,5.80895]
[1742781557795,10.08237,1983.7,1983.3,5.80895]
[1742781558289,10.08236,1983.7,1983.3,5.80895]
[1742781558587,5.04143,1983.6,1983.4,1.61027186]
[1742781558879,5.04159,1983.5,1983.4,1.02937686]
[1742781560394,5.04159,1983.5,1983.4,9.02937686]
[1742781561409,5.04159,1983.5,1983.4,8.0]
[1742781563427,8.04159,1983.5,1983.4,8.0]
[1742781567635,3.0,1983.6,1983.4,8.0]
[1742781568233,5.04135,1983.6,1983.4,8.8]
[1742781568637,5.04159,1983.5,1983.4,0.8]
[1742781568816,5.04159,1983.5,1983.3,0.7814]
[1742781569216,5.04135,1983.6,1983.3,0.7814]
[1742781569420,3.0,1983.7,1983.5,8.0]
[1742781570054,5.04008,1984.1,1983.6,0.7814]
[1742781570207,5.04008,1984.1,1983.7,5.04103]
[1742781570552,5.04043,1984.0,1983.7,1.09139276]
[1742781570718,5.04055,1984.0,1983.7,1.09139276]
[1742781571048,0.793,1984.3,1983.7,1.09139276]
[1742781571215,5.03941,1984.4,1983.9,5.04041]
[1742781571554,5.03941,1984.4,1984.0,8.504041]
[1742781571853,5.03909,1984.5,1984.0,42.207611]
[1742781572058,10.07837,1984.5,1984.1,5.03991]
[1742781572207,5.0393,1984.4,1984.0,42.207611]
[1742781572402,5.0393,1984.4,1984.1,5.20726423]
[1742781572650,5.03968,1984.3,1984.0,37.167441]
[1742781572812,5.03981,1984.2,1984.0,37.39305208]
[1742781573008,5.03981,1984.2,1984.0,36.88901108]
[1742781573357,5.04006,1984.1,1984.0,27.882]
[1742781574050,8.90259329,1984.1,1984.0,27.882]
[1742781574355,11.90259329,1984.1,1984.0,27.882]
[1742781575314,11.90259329,1984.1,1984.0,35.882]
[1742781578064,3.0,1984.1,1984.0,35.882]
[1742781578217,8.90178329,1984.5,1984.1,0.7892]
[1742781578417,8.90170329,1984.5,1984.1,5.82925]
[1742781579355,8.03931,1984.4,1984.2,1.0210565]
[1742781579564,13.07886,1984.4,1984.1,0.7892]
[1742781579770,5.03959,1984.3,1984.1,0.7892]
[1742781579944,8.03931,1984.4,1984.1,0.7892]
[1742781580265,8.03931,1984.4,1984.1,1.80864027]
[1742781580671,8.03931,1984.4,1984.1,6.4405563]
[1742781580869,3.0,1984.4,1984.2,5.03962]
[1742781581239,3.0,1984.4,1984.1,11.4806163]
[1742781581446,3.0,1984.4,1984.3,8.0]
[1742781582190,8.0393,1984.4,1984.3,8.0]
[1742781586094,3.0,1984.4,1984.3,8.0]
[1742781586293,8.90166329,1984.5,1984.3,8.0]
[1742781586497,3.0,1984.6,1984.3,15.132601]
[1742781586807,13.93883329,1984.9,1984.5,5.03891]
[1742781587092,3.0,1984.8,1984.6,5.03879]
[1742781587600,3.0,1984.8,1984.5,6.046781]
[1742781588498,8.03829,1984.8,1984.7,8.0]
[1742781590306,8.03879,1984.6,1984.5,8.0]
[1742781590603,11.90132329,1984.6,1984.5,4.13746671]
[1742781591807,8.90132329,1984.6,1984.5,4.13746671]
[1742781592375,8.90132329,1984.6,1984.5,8.0]
[1742781593579,5.03856,1984.7,1984.5,8.0]
[1742781594093,10.07729,1984.7,1984.5,8.0]
[1742781594396,5.03907,1984.5,1984.2,1.01570468]
[1742781594572,5.0394,1984.4,1984.2,1.01570468]
[1742781595503,5.03913,1984.5,1984.2,1.01570468]
[1742781596373,5.03913,1984.5,1984.4,8.0]
[1742781596575,13.94033329,1984.6,1984.4,8.0]
[1742781596998,5.03905,1984.5,1984.4,8.0]
[1742781598091,8.90135329,1984.6,1984.4,8.0]
[1742781599295,8.90135329,1984.6,1984.5,8.0]
[1742781600899,8.60185678,1984.6,1984.5,8.0]
[1742781602202,21.21119356,1984.6,1984.5,8.0]
[1742781602402,8.8646,1984.5,1984.4,8.0]
[1742781602608,12.42763678,1984.5,1984.4,3.63741773]
[1742781602765,3.8253,1984.4,1983.5,0.7561]
[1742781602966,8.60436678,1983.6,1983.5,0.98981105]
[1742781603805,5.0421,1983.3,1983.1,28.6271]
[1742781603984,3.56303678,1983.2,1983.1,30.73371]
[1742781604185,3.56303678,1983.2,1983.1,27.871]
[1742781604912,8.90565133,1983.3,1983.1,27.871]
[1742781605075,13.94798133,1983.3,1983.1,27.871]
[1742781605406,13.94798133,1983.3,1983.1,35.871]
[1742781605608,8.90565133,1983.3,1983.1,35.871]
[1742781605798,5.04235,1983.2,1983.1,35.871]
[1742781606710,8.04235,1983.2,1983.1,35.871]
[1742781607805,8.83555,1983.2,1983.1,8.0]
[1742781608434,5.04348,1982.8,1982.5,27.876]
[1742781608576,8.90703133,1982.8,1982.5,27.876]
[1742781608780,10.08765,1982.7,1982.5,27.876]
[1742781609094,8.90743133,1982.6,1982.5,27.876]
[1742781609619,11.90743133,1982.6,1982.5,27.876]
[1742781609819,10.25721,1982.9,1982.5,27.876]
[1742781609994,3.0,1982.7,1982.5,27.876]
[1742781610194,5.04338,1982.8,1982.5,31.168019]
[1742781610395,5.04338,1982.8,1982.7,8.0]
[1742781611023,8.90668133,1982.9,1982.7,8.0]
[1742781611174,3.86355133,1982.9,1982.7,8.0]
[1742781611734,5.04185,1983.4,1983.0,5.04264]
[1742781611906,5.83419,1983.8,1983.3,5.04192]
[1742781612075,0.7932,1983.8,1983.4,5.04184]
[1742781612287,5.04072,1983.9,1983.7,8.0]
[1742781612486,5.04083,1983.8,1983.7,8.0]
[1742781612939,13.94433133,1984.0,1983.7,8.0]
[1742781613143,5.04059,1983.9,1983.7,8.0]
[1742781613473,3.86355133,1983.8,1983.7,8.0]
[1742781613630,11.90438133,1983.8,1983.7,8.0]
[1742781613795,12.69758133,1983.8,1983.7,8.0]
[1742781614303,5.04108,1983.7,1983.6,8.0]
[1742781614504,8.90463133,1983.7,1983.6,4.13644867]
[1742781615725,3.86355133,1983.7,1983.6,4.13644867]
[1742781615945,3.86355133,1983.9,1983.6,5.32179354]
[1742781616131,3.86355133,1983.9,1983.6,10.36301354]
[1742781616293,3.86355133,1983.9,1983.7,8.0]
[1742781616833,5.03987,1984.2,1983.8,5.04072]
[1742781617349,8.90362133,1984.1,1983.8,8.0]
[1742781617520,5.04033,1984.0,1983.8,8.0]
[1742781617724,8.90362133,1984.1,1983.8,8.0]
[1742781618306,8.90362133,1984.1,1983.8,9.304108]
[1742781619011,5.03993,1984.2,1983.8,14.344928]
[1742781619321,5.03993,1984.2,1984.0,8.0]
[1742781620044,5.04006,1984.1,1984.0,8.0]
[1742781620204,8.90361133,1984.1,1984.0,8.0]
[1742781620404,5.0408,1983.9,1983.6,0.7717]
[1742781620712,8.90429133,1983.9,1983.6,0.7717]
[1742781620912,13.94509133,1983.9,1983.6,0.7717]
[1742781621247,5.04083,1983.8,1983.4,5.04168]
[1742781621425,3.86355133,1983.7,1983.3,39.44892]
[1742781621622,3.86355133,1983.9,1983.6,5.04117]
[1742781621821,3.0,1984.0,1983.7,5.81307]
[1742781622334,8.90374133,1984.1,1983.9,8.0]
[1742781622535,8.90368133,1984.1,1983.9,8.0]
[1742781622710,13.94396133,1984.1,1983.9,8.0]
[1742781623443,5.04032,1984.0,1983.9,8.0]
[1742781623659,8.90366133,1984.1,1983.9,8.0]
[1742781623854,5.03982,1984.2,1983.9,13.04043]
[1742781623855,3.0,1984.2,1983.9,13.04043]
[1742781624178,5.41258635,1984.6,1984.0,0.82240479]
[1742781624330,8.90265133,1984.5,1984.1,5.03994]
[1742781624531,8.90265133,1984.5,1984.0,5.81225]
[1742781624751,8.90265133,1984.5,1984.0,10.8524]
[1742781624938,8.90265133,1984.5,1984.0,12.95215925]
[1742781625150,8.90265133,1984.5,1984.1,5.04001]
[1742781625350,8.90265133,1984.5,1984.4,8.0]
[1742781626565,3.86355133,1984.5,1984.4,8.0]
[1742781626759,3.0,1984.7,1984.4,8.0]
[1742781626760,11.90219133,1984.7,1984.4,8.0]
[1742781627270,16.94092133,1984.7,1984.6,8.0]
[1742781627477,11.90219133,1984.7,1984.6,8.0]
[1742781629475,0.3848591,1985.0,1984.7,0.772]
[1742781629674,0.3848591,1985.0,1984.9,5.81003]
[1742781630074,3.0,1985.5,1985.1,5.03742]
[1742781630372,3.0,1985.6,1985.2,5.03705]
[1742781630575,14.74009133,1985.8,1985.3,5.80898]
[1742781630777,0.8048,1986.0,1985.6,5.03614]
[1742781630942,3.86355133,1986.1,1985.7,5.03599]
[1742781631142,0.8048,1986.2,1985.8,5.03559]
[1742781631340,9.89435133,1986.4,1985.7,0.772]
[1742781631541,5.03512,1986.1,1985.7,3.6367]
[1742781631780,5.03512,1986.1,1985.7,5.80786]
[1742781631961,13.93321133,1986.2,1985.7,5.80786]
[1742781632161,8.89829133,1986.2,1985.7,5.80786]
[1742781632358,13.93326133,1986.2,1986.0,8.0]
[1742781632546,5.03499,1986.1,1986.0,8.0]
[1742781633297,5.03499,1986.1,1985.7,5.80797]
[1742781633885,10.07019,1986.1,1985.7,6.79831096]
[1742781634182,3.0,1986.3,1985.6,27.875]
[1742781634183,8.036,1985.7,1985.6,27.875]
[1742781634486,5.03683,1985.4,1984.9,38.89894]
[1742781634653,0.8048,1985.5,1984.9,32.260722]
[1742781634654,8.90067133,1985.3,1984.9,32.260722]
[1742781634978,5.03736,1985.2,1984.9,27.867]
[1742781635166,8.90067133,1985.3,1984.9,32.90497]
[1742781635481,8.90067133,1985.3,1985.2,8.0]
[1742781636174,5.03712,1985.3,1985.2,8.0]
[1742781636569,10.07369,1985.4,1985.2,8.0]
[1742781636770,5.03663,1985.5,1985.2,8.0]
[1742781637084,3.86355133,1985.7,1985.3,5.03689]
[1742781637085,3.0,1985.7,1985.3,5.03689]
[1742781637382,5.03608,1985.7,1985.3,5.03689]
[1742781637676,5.03655,1985.5,1985.2,9.383271]
[1742781638351,5.03655,1985.5,1985.4,8.0]
[1742781638550,5.03633,1985.6,1985.4,8.0]
[1742781639255,8.03651,1985.5,1985.4,8.0]
[1742781639460,8.79511,1985.5,1985.4,8.0]
[1742781639659,8.03651,1985.5,1985.4,8.0]
[1742781640383,5.03719,1985.3,1984.9,32.90502]
[1742781640578,8.03685,1985.4,1984.9,31.740843]
[1742781640746,8.03685,1985.4,1985.0,5.03764]
[1742781641150,8.03679,1985.4,1985.1,0.05037283]
[1742781641449,5.03715,1985.3,1985.1,1.01256128]
[1742781641644,3.0,1985.7,1984.9,31.740843]
[1742781641885,5.03741,1985.2,1984.9,31.740843]
[1742781642976,5.03741,1985.2,1984.9,36.778853]
[1742781643509,5.03741,1985.2,1985.1,8.0]
[1742781643993,8.03741,1985.2,1985.1,8.0]
[1742781644479,8.03778,1985.0,1984.9,35.867]
[1742781645271,8.79638,1985.0,1984.9,8.0]
[1742781645676,13.99838,1985.0,1984.9,8.0]
[1742781646063,17.89683699,1985.0,1984.9,8.0]
[1742781646264,5.0393,1984.4,1984.3,27.862]
[1742781647568,5.03912,1984.5,1984.3,27.862]
[1742781648303,10.07839,1984.5,1984.3,27.862]
[1742781648591,3.0,1984.6,1984.3,27.862]
[1742781648791,8.03806,1984.9,1984.4,5.03909]
[1742781648993,5.03806,1984.9,1984.6,0.8254]
[1742781649367,8.03806,1984.9,1984.6,0.8254]
[1742781649567,5.03779,1985.0,1984.6,6.450561]
[1742781649802,5.9967,1985.2,1984.6,0.8254]
[1742781650010,3.0,1985.1,1984.6,0.8254]
[1742781650220,5.03813,1984.9,1984.6,0.8254]
[1742781650502,13.07639,1984.9,1984.5,5.03904]
[1742781650711,5.03831,1984.8,1984.5,1.007833]
[1742781650869,5.03856,1984.7,1984.3,35.68774]
[1742781651276,5.0383,1984.8,1984.4,5.0393]
[1742781651986,8.03806,1984.9,1984.5,5.03894]
[1742781652187,8.03806,1984.9,1984.6,0.7821]
[1742781652685,3.0,1984.9,1984.6,0.7821]
[1742781652908,5.0378,1985.0,1984.6,0.7821]
[1742781652909,3.0,1985.0,1984.8,5.03825]
[1742781653080,3.0,1985.0,1984.8,5.03818]
[1742781653281,13.0743,1985.3,1984.8,5.03817]
[1742781653481,5.03729,1985.2,1984.8,5.03813]
[1742781653813,15.25972,1985.4,1984.9,5.03786]
[1742781653976,3.0,1985.3,1984.9,5.03786]
[1742781654378,3.0,1985.3,1984.8,5.0381]
[1742781654379,8.03712,1985.3,1984.8,5.0381]
[1742781654574,5.03712,1985.3,1984.9,5.03791]
[1742781655080,10.07427,1985.3,1984.9,5.03791]
[1742781655275,10.0748,1985.2,1984.8,5.54206]
[1742781655477,5.03779,1985.0,1984.8,27.865]
[1742781655709,5.03755,1985.1,1984.8,27.865]
[1742781655910,10.07481,1985.2,1984.8,32.90326]
[1742781656110,8.0374,1985.2,1984.8,32.90326]
[1742781656614,8.0374,1985.2,1984.8,32.90312]
[1742781656911,3.0,1985.2,1984.9,5.03793]
[1742781657211,8.8924134,1985.5,1985.1,5.03738]
[1742781657513,3.0,1985.4,1985.1,5.03738]
[1742781657681,8.03686,1985.4,1985.0,0.7821]
[1742781657877,5.03704,1985.3,1985.0,0.7821]
[1742781658277,8.8935134,1985.1,1984.8,27.865]
[1742781658734,5.03683,1985.4,1985.0,5.8197]
[1742781658735,8.03688,1985.4,1985.0,5.8197]
[1742781659239,5.03747,1985.2,1984.8,27.865]
[1742781659514,5.03755,1985.1,1984.8,27.865]
[1742781659725,5.03781,1985.0,1984.8,27.865]
[1742781660382,8.8938834,1984.9,1984.8,27.865]
[1742781662325,3.0,1984.8,1984.4,0.7821]
[1742781662478,3.0,1984.8,1983.5,8.8974134]
[1742781662479,3.8558534,1984.5,1984.1,0.7821]
[1742781662811,10.07787,1984.6,1984.1,8.68671]
[1742781663012,5.03906,1984.5,1984.1,8.68671]
[1742781663211,5.03906,1984.5,1984.1,3.64671]
[1742781663517,10.07836,1984.5,1984.1,3.64671]
[1742781663917,5.03906,1984.5,1984.1,8.68673]
[1742781664100,5.0388,1984.6,1984.2,5.03981]
[1742781664299,8.0388,1984.6,1984.2,5.03981]
[1742781664506,5.03908,1984.5,1984.1,8.68673]
[1742781664691,5.03931,1984.4,1984.1,0.7821]
[1742781665426,8.03896,1984.6,1984.2,10.07932]
[1742781665624,5.039,1984.6,1984.2,5.03961]
[1742781665834,5.03917,1984.5,1984.1,5.82213]
[1742781666196,5.03879,1984.6,1984.1,5.82198]
[1742781666408,1.20644758,1985.1,1984.3,0.8179]
[1742781666598,5.03702,1985.3,1984.9,5.03794]
[1742781666816,5.03713,1985.3,1984.9,5.85582]
[1742781666998,8.8926234,1985.4,1985.0,5.03764]
[1742781667192,5.03644,1985.6,1985.1,5.03751]
[1742781667193,10.07333,1985.5,1985.1,5.03751]
[1742781667513,5.8553,1985.7,1985.2,5.03712]
[1742781667710,5.036,1985.7,1985.3,6.36996726]
[1742781667898,5.036,1985.7,1985.3,1.282712]
[1742781668098,5.03638,1985.6,1985.3,0.779]
[1742781668499,8.8918534,1985.7,1985.3,0.779]
[1742781668500,3.8558534,1985.7,1985.3,0.779]
[1742781668721,8.8918634,1985.7,1985.3,5.81597]
[1742781668917,5.03601,1985.7,1985.3,5.81597]
[1742781669232,3.8558534,1985.9,1985.4,5.03667]
[1742781669439,3.8558534,1986.1,1985.4,0.63192813]
[1742781669596,5.03504,1986.1,1985.7,5.03595]
[1742781669796,3.0,1986.1,1985.8,5.03558]
[1742781670294,5.03423,1986.4,1985.9,0.779]
[1742781670495,8.03495,1986.2,1985.7,5.036]
[1742781670740,5.03546,1986.0,1985.6,34.391]
[1742781670947,3.8558534,1985.9,1985.6,33.841]
[1742781671109,8.8918534,1985.7,1985.6,27.863]
[1742781671496,11.8918534,1985.7,1985.6,27.863]
[1742781671734,12.6956534,1985.7,1985.6,27.863]
[1742781672100,3.0,1985.7,1985.6,27.863]
[1742781672497,8.036,1985.7,1985.6,27.863]
[1742781672701,11.8918534,1985.7,1985.6,27.863]
[1742781673137,3.0,1985.7,1985.6,27.863]
[1742781673309,3.0,1985.7,1985.6,28.642]
[1742781674031,8.036,1985.7,1985.6,27.863]
[1742781674199,11.8918534,1985.7,1985.6,27.863]
[1742781675046,5.03689,1985.4,1985.0,5.968]
[1742781675339,3.8558534,1985.4,1985.0,5.968]
[1742781675502,5.03757,1985.1,1984.9,27.859]
[1742781675696,8.8936334,1985.0,1984.9,27.859]
[1742781675895,11.8936334,1985.0,1984.9,27.859]
[1742781676928,8.03778,1985.0,1984.9,27.859]
[1742781677434,3.0,1985.0,1984.9,27.859]
[1742781677634,8.03778,1985.0,1984.9,27.859]
[1742781678338,5.03854,1984.7,1984.4,0.779]
[1742781678631,5.03829,1984.8,1984.4,5.66735995]
[1742781678834,3.0,1984.7,1984.4,5.66735995]
[1742781679033,3.0,1984.7,1984.3,32.90044]
[1742781679034,5.03903,1984.6,1984.3,27.861]
[1742781679335,5.03894,1984.6,1984.3,27.861]
[1742781679651,5.03856,1984.7,1984.3,32.90055]
[1742781679863,5.03856,1984.7,1984.3,36.694582]
[1742781680218,5.03881,1984.6,1984.3,31.655032]
[1742781681235,8.03892,1984.6,1984.3,31.655032]
[1742781681436,13.07795,1984.6,1984.3,27.861]
[1742781681641,5.03927,1984.5,1984.3,27.861]
[1742781682170,5.03884,1984.6,1984.3,27.861]
[1742781682321,3.0,1984.6,1984.3,31.15108]
[1742781682649,8.03837,1984.8,1984.4,5.0391]
[1742781682854,13.07689,1984.8,1984.3,36.19054]
[1742781683050,5.03857,1984.7,1984.3,36.19054]
[1742781683249,5.03895,1984.6,1984.3,27.861]
[1742781683961,10.07799,1984.6,1984.3,27.861]
[1742781684253,5.03908,1984.5,1984.3,27.861]
[1742781684451,10.87289,1984.7,1984.3,27.861]
[1742781684657,10.07729,1984.7,1984.3,27.861]
[1742781684824,5.03854,1984.7,1984.3,32.90055]
[1742781685157,5.03834,1984.8,1984.3,36.42504412]
[1742781685329,8.03834,1984.8,1984.3,36.42504412]
[1742781685659,8.03834,1984.8,1984.3,41.46443412]
[1742781686026,13.07684,1984.8,1984.3,36.42504412]
[1742781686456,5.03804,1984.9,1984.5,5.82002]
[1742781686656,5.03788,1985.0,1984.6,5.03867]
[1742781686955,10.20157,1985.1,1984.7,5.03844]
[1742781687141,5.03757,1985.1,1984.7,6.046144]
[1742781687321,5.03757,1985.1,1984.7,11.084544]
[1742781687517,5.03733,1985.2,1984.8,5.03828]
[1742781687722,10.07369,1985.4,1985.0,5.03777]
[1742781688028,10.19958,1985.5,1985.1,0.503777]
[1742781688225,5.163,1985.5,1984.9,0.7811]
[1742781688556,10.07429,1985.3,1984.9,0.7811]
[1742781689065,5.03702,1985.3,1984.9,0.7811]
[1742781689230,5.03727,1985.2,1984.9,0.7811]
[1742781689760,8.03686,1985.4,1984.7,5.9431]
[1742781689967,5.03806,1984.9,1984.5,16.02584]
[1742781690255,5.03806,1984.9,1984.5,17.99268444]
[1742781690434,5.0379,1985.0,1984.6,5.03876]
[1742781690865,10.0759,1985.0,1984.6,5.03876]
[1742781691369,5.03806,1984.9,1984.5,12.95396444]
[1742781691666,5.03806,1984.9,1984.5,12.95379444]
[1742781691864,3.0,1985.2,1984.9,5.03797]
[1742781692034,3.0,1985.3,1985.0,0.7811]
[1742781692220,8.03705,1985.3,1985.0,0.7811]
[1742781694166,3.0,1985.5,1985.0,0.7811]
[1742781694351,5.03804,1984.9,1984.7,0.7811]
[1742781694526,5.03795,1985.0,1984.5,10.97396]
[1742781694726,5.03795,1985.0,1984.6,5.03869]
[1742781695848,5.154,1985.2,1984.8,5.03828]
[1742781696062,5.154,1985.2,1984.6,5.03872]
[1742781696236,5.03783,1985.0,1984.6,10.07732]
[1742781696564,5.03758,1985.1,1984.6,5.03878]
[1742781696752,5.03758,1985.1,1984.7,5.03845]
[1742781697165,10.07533,1985.1,1984.7,5.03845]
[1742781697465,5.03807,1984.9,1984.5,12.071476]
[1742781697765,5.0379,1985.0,1984.6,5.03876]
[1742781698467,10.07525,1985.1,1984.7,5.03842]
[1742781698941,5.03782,1985.0,1984.6,5.03863]
[1742781699559,5.03782,1985.0,1984.7,5.03853]
[1742781699767,5.03782,1985.0,1984.5,12.071526]
[1742781699768,5.03782,1985.0,1984.6,5.03875]
[1742781700063,8.89429205,1985.1,1984.7,5.03842]
[1742781700266,5.03734,1985.2,1984.9,5.03802]
[1742781700442,5.03734,1985.2,1984.8,5.03826]
[1742781700847,5.03734,1985.2,1984.8,10.07645]
[1742781701167,11.89379205,1985.3,1984.9,5.03801]
[1742781701953,5.03678,1985.4,1985.0,5.03769]
[1742781703475,5.0372,1985.3,1984.9,6.80523]
[1742781703974,8.89396205,1985.3,1984.9,6.80523]
[1742781704642,8.89396205,1985.3,1984.9,11.84308]
[1742781704971,8.89382205,1985.3,1985.0,5.0377]
[1742781705172,3.85676205,1985.3,1985.0,5.0377]
[1742781705968,3.85676205,1985.3,1985.0,6.221877]
[1742781706285,3.85676205,1985.3,1985.0,5.0376]
[1742781707345,5.03678,1985.4,1985.0,5.0376]
[1742781708593,5.03678,1985.4,1984.9,5.79762]
[1742781708741,5.03705,1985.3,1984.9,5.79762]
[1742781709284,5.03705,1985.3,1984.9,10.83548]
[1742781709450,5.03705,1985.3,1984.9,11.919028]
[1742781709649,13.93103205,1985.3,1984.9,6.881008]
[1742781709867,5.03737,1985.2,1984.8,5.03821]
[1742781710341,5.03737,1985.2,1984.8,10.07633]
[1742781710568,8.89388205,1985.3,1984.9,5.03798]
[1742781711053,3.85676205,1985.3,1985.0,5.03768]
[1742781711572,5.03676,1985.4,1985.0,10.07532]
[1742781711767,5.03676,1985.4,1985.0,5.03764]
[1742781712498,10.07377,1985.4,1985.0,5.03764]
[1742781713148,5.03676,1985.4,1985.1,5.03752]
[1742781713572,5.03676,1985.4,1985.0,5.03772]
[1742781714374,11.89336205,1985.5,1985.1,5.03744]
[1742781714872,6.85676205,1985.5,1985.1,0.8049]
[1742781715038,3.0,1985.5,1985.3,5.03698]
[1742781715482,3.0,1985.6,1985.3,5.03689]
[1742781715653,8.89283205,1985.7,1985.3,10.07374]
[1742781715845,3.85676205,1985.7,1985.4,5.03676]
[1742781716339,11.89279205,1985.7,1985.4,5.03661]
[1742781717063,6.85676205,1985.7,1985.4,10.07329]
[1742781717268,6.85676205,1985.7,1985.4,5.03661]
[1742781717577,3.0,1985.7,1985.3,10.11298]
[1742781717775,8.03616,1985.7,1985.3,10.11298]
[1742781718470,5.03652,1985.5,1985.2,5.03704]
[1742781718679,5.03652,1985.5,1985.1,10.9184]
[1742781718889,5.03652,1985.5,1985.1,12.514017]
[1742781720297,10.85843,1985.5,1985.1,6.632957]
[1742781720452,5.82172,1985.5,1985.1,5.03734]
[1742781720961,5.82172,1985.5,1985.2,5.03721]
[1742781721297,3.85676205,1985.6,1985.2,5.03713]
[1742781721463,8.89272205,1985.8,1985.4,5.03656]
[1742781721785,3.85676205,1985.8,1985.4,5.03656]
[1742781721990,3.85676205,1985.8,1985.5,5.0364]
[1742781722897,8.89251205,1985.8,1985.5,5.0364]
[1742781723201,8.89314205,1985.6,1985.2,5.03713]
[1742781723698,3.85676205,1985.6,1985.3,5.037]
[1742781723995,3.85676205,1985.8,1985.4,5.03669]
[1742781724159,3.7852,1985.9,1985.4,5.0366]
[1742781724358,3.7852,1985.9,1985.1,11.45825]
[1742781724359,3.85676205,1986.0,1985.7,5.03578]
[1742781724586,8.89203205,1986.0,1985.7,5.03578]
[1742781724888,3.85676205,1986.0,1985.7,5.03578]
[1742781725192,3.85676205,1986.0,1985.7,10.07164]
[1742781725400,3.85676205,1986.0,1985.7,5.03578]
[1742781726103,3.0,1986.1,1985.8,5.03569]
[1742781726454,3.85676205,1986.0,1985.7,6.123551]
[1742781726892,8.89209205,1986.0,1985.6,10.87722]
[1742781727055,8.89209205,1986.0,1985.6,10.87712]
[1742781727862,8.89209205,1986.0,1985.7,5.03599]
[1742781728062,3.85676205,1986.0,1985.7,10.07183]
[1742781728298,3.85676205,1986.0,1985.8,5.03565]
[1742781729173,8.03501,1986.1,1985.8,5.03565]
[1742781730303,8.03501,1986.1,1985.7,5.03594]
[1742781730973,3.5573557,1985.9,1985.7,5.03594]
[1742781731174,1.17698969,1986.4,1985.8,28.357594]
[1742781731355,6.5573557,1986.2,1985.9,5.03531]
[1742781731562,3.5573557,1986.2,1986.0,5.03521]
[1742781731906,3.5573557,1986.2,1986.1,5.03499]
[1742781732202,5.83328,1986.4,1986.1,6.042003]
[1742781732203,0.799,1986.4,1986.1,6.042003]
[1742781732407,3.5573557,1986.4,1986.3,5.03435]
[1742781732914,0.799,1986.6,1986.3,5.03435]
[1742781733088,0.799,1986.6,1986.4,10.06812]
[1742781733089,3.0,1986.6,1986.4,10.06812]
[1742781733259,3.5573557,1986.7,1986.5,5.03375]
[1742781733659,3.5573557,1986.7,1986.5,10.06758]
[1742781733899,3.5573557,1986.7,1986.5,5.03397]
[1742781734091,3.5573557,1986.7,1986.4,6.856972]
[1742781734301,8.83197,1986.9,1986.5,5.03397]
[1742781734456,3.5573557,1986.8,1986.5,6.2230642]
[1742781734898,3.5573557,1986.6,1986.5,1.1890942]
[1742781735110,8.5911057,1986.6,1986.2,5.85052]
[1742781735395,3.5573557,1986.4,1986.3,5.03448]
[1742781735573,3.5573557,1986.4,1986.2,10.91352]
[1742781735972,3.5573557,1986.4,1986.2,15.94811]
[1742781736165,3.5573557,1986.4,1986.3,1.594811]
[1742781736655,3.5573557,1986.4,1986.2,10.91362]
[1742781737159,3.5573557,1986.4,1986.3,5.03448]
[1742781737359,3.5573557,1986.6,1986.3,10.06886]
[1742781737585,3.5573557,1986.6,1986.3,5.03429]
[1742781737863,3.0,1986.8,1986.4,5.537639]
[1742781738163,3.0,1986.8,1986.5,5.03384]
[1742781738356,3.5573557,1987.0,1986.6,33.6335]
[1742781738557,5.83817,1987.1,1986.7,5.03345]
[1742781738761,8.5904157,1986.9,1986.6,37.02435]
[1742781738990,8.5904157,1986.9,1986.6,36.27035]
[1742781739192,3.5573557,1986.9,1986.6,41.30397]
[1742781739385,3.5573557,1986.9,1986.6,36.27035]
[1742781739581,8.5904157,1986.9,1986.6,36.27035]
[1742781740616,3.5573557,1986.7,1986.6,32.907]
[1742781740981,3.5573557,1986.7,1986.6,27.846]
[1742781742076,3.0,1987.0,1986.6,32.87972]
[1742781742286,3.5573557,1986.9,1986.6,32.87972]
[1742781742512,3.5573557,1986.9,1986.7,3.287972]
[1742781743110,3.5573557,1986.9,1986.7,4.041572]
[1742781743816,3.5073557,1986.9,1986.7,9.075012]
[1742781744025,4.3630557,1987.1,1986.7,9.075012]
[1742781744199,3.5573557,1987.2,1986.9,5.03283]
[1742781744367,5.03154,1987.5,1987.0,5.03259]
[1742781744568,3.5573557,1987.3,1987.0,5.03259]
[1742781744774,3.0,1987.4,1987.1,5.03244]
[1742781745005,6.5573557,1987.4,1987.1,6.038943]
[1742781745180,6.5573557,1987.4,1987.1,1.006503]
[1742781745382,11.5890557,1987.4,1987.1,1.006503]